bitfinex-derivatives/quotes_SOLF0:USTF0_20241021
["timestamp","ask_amount","ask_price","bid_price","bid_amount"]
[1729517641931,5.7,165.01,165.0,65.0]
[1729517642132,26.9411,165.01,165.0,65.0]
[1729517642425,26.9411,165.01,164.76,12.1425]
[1729517642426,23.91,165.01,164.86,5.7]
[1729517642624,26.91187098,165.01,164.83,9.6423]
[1729517642817,3.033,164.91,164.88,3.0335]
[1729517643022,3.033,164.91,164.83,9.6423]
[1729517643826,2.98427182,164.92,164.83,9.6423]
[1729517644029,5.7,164.94,164.83,9.6423]
[1729517644429,3.033,164.91,164.87,3.0337]
[1729517644624,6.13613373,164.91,164.87,3.0337]
[1729517644830,3.033,164.91,164.87,3.0337]
[1729517645028,3.033,164.91,164.83,9.6423]
[1729517645229,5.7,164.94,164.83,9.6423]
[1729517645531,3.00187098,165.01,164.83,9.6423]
[1729517645735,18.21,164.99,164.89,3.0332]
[1729517645925,5.7,165.0,164.83,9.6423]
[1729517646127,5.7,165.0,164.91,3.0328]
[1729517646623,5.7,165.0,164.83,9.6423]
[1729517646824,18.21,164.99,164.83,9.6423]
[1729517647221,3.0328,164.92,164.88,3.0334]
[1729517650341,3.0332,164.9,164.86,3.0337]
[1729517650837,3.0332,164.9,164.85,3.0341]
[1729517651037,3.0332,164.9,164.83,9.6423]
[1729517651038,3.07581865,164.91,164.83,3.9423]
[1729517651235,5.7,164.94,164.83,3.9423]
[1729517651543,5.7,164.94,164.85,3.0341]
[1729517651739,8.76428281,164.94,164.85,3.0341]
[1729517652039,3.0335,164.89,164.85,3.0341]
[1729517652635,3.033,164.91,164.87,3.0336]
[1729517652842,5.7,164.93,164.83,3.9423]
[1729517653240,1.2763,164.98,164.83,3.9423]
[1729517653241,3.0326,164.94,164.9,3.033]
[1729517653551,3.0293076,164.93,164.86,5.7]
[1729517653838,5.7,164.96,164.88,3.0334]
[1729517654441,3.0325,164.94,164.88,3.0334]
[1729517654637,3.02171915,164.93,164.88,3.0334]
[1729517654840,5.7,164.96,164.86,5.7]
[1729517655044,5.7,164.96,164.83,9.6423]
[1729517655344,5.7,164.96,164.86,3.0339]
[1729517655345,23.91,164.96,164.86,3.0339]
[1729517655635,23.91,164.96,164.83,9.6423]
[1729517656341,5.7,164.96,164.83,9.6423]
[1729517656737,1.2763,164.98,164.84,1.5179209]
[1729517656936,18.21,164.99,164.83,9.6423]
[1729517656937,5.7,164.97,164.83,9.6423]
[1729517657131,3.0325,164.94,164.9,3.033]
[1729517658436,5.7,164.97,164.83,9.6423]
[1729517658637,5.7,164.97,164.84,1.5178977]
[1729517658842,5.7,164.97,164.85,1.5178977]
[1729517659040,5.7,164.97,164.83,9.6423]
[1729517659240,5.7,164.97,164.84,1.51788333]
[1729517659541,5.7,164.97,164.85,1.51788333]
[1729517659744,3.0329,164.92,164.88,3.0335]
[1729517659945,3.07799041,164.92,164.83,9.6423]
[1729517660239,5.7,164.91,164.76,6.0712]
[1729517660443,5.7,164.9,164.79,2.6295]
[1729517660647,5.7,164.9,164.8,1.51838881]
[1729517660846,3.0338,164.87,164.81,3.0347]
[1729517661046,3.10925291,164.86,164.81,3.0347]
[1729517661244,5.7,164.9,164.81,3.0347]
[1729517661440,23.91,164.9,164.79,2.6295]
[1729517661645,26.92880412,164.9,164.66,6.0751]
[1729517661944,26.92880412,164.9,164.72,1.3244]
[1729517662148,18.21,164.88,164.67,1.2666]
[1729517662343,18.21,164.88,164.68,1.51925231]
[1729517662745,18.21,164.86,164.7,3.0368]
[1729517662947,6.0675,164.87,164.7,3.0368]
[1729517662948,18.21,164.84,164.7,3.0368]
[1729517663145,3.0361,164.75,164.7,3.0368]
[1729517663448,5.7,164.75,164.7,3.0368]
[1729517664244,5.7,164.75,164.67,1.2666]
[1729517664547,5.7,164.75,164.71,3.0365]
[1729517665441,8.736,164.75,164.71,3.0365]
[1729517665647,5.7,164.75,164.71,3.0365]
[1729517665845,8.7359,164.75,164.71,3.0365]
[1729517666045,8.7359,164.75,164.7,3.0368]
[1729517666440,3.0365,164.72,164.67,1.2666]
[1729517666648,3.0365,164.72,164.62,1.3244]
[1729517666649,5.7,164.75,164.63,5.7]
[1729517667148,3.0368,164.71,164.66,3.0374]
[1729517667443,3.0368,164.71,164.63,5.7]
[1729517667646,3.0366,164.72,164.67,3.0372]
[1729517667846,3.01578903,164.76,164.63,5.7]
[1729517668049,5.7,164.75,164.63,5.7]
[1729517668248,3.0363,164.73,164.68,3.037]
[1729517668443,8.78069791,164.75,164.63,5.7]
[1729517668840,3.0364,164.73,164.63,5.7]
[1729517669352,3.0364,164.73,164.67,3.0372]
[1729517669850,3.0362,164.74,164.69,3.0369]
[1729517670550,8.78069791,164.75,164.63,5.7]
[1729517672044,8.78069791,164.75,164.62,2.6549]
[1729517672240,3.0372,164.68,164.62,2.6549]
[1729517672440,5.7,164.69,164.62,2.6549]
[1729517672840,3.0381,164.64,164.6,80.0]
[1729517673248,5.7,164.64,164.6,80.0]
[1729517673447,8.7381,164.64,164.6,80.0]
[1729517673644,5.7,164.64,164.6,80.0]
[1729517673958,5.7,164.64,164.61,3.0384]
[1729517674149,3.07896863,164.63,164.6,80.0]
[1729517674345,5.7,164.64,164.6,80.0]
[1729517674854,3.0385,164.61,164.6,80.0]
[1729517675354,3.0385,164.61,164.6,78.6514]
[1729517675650,3.0385,164.61,164.6,78.6273]
[1729517675849,3.0385,164.61,164.6,2.2773]
[1729517676056,27.00173687,164.64,164.49,3.0406]
[1729517676556,21.2488,164.6,164.49,3.0406]
[1729517676855,5.7,164.59,164.49,3.0406]
[1729517677653,5.7,164.58,164.42,3.9249]
[1729517677857,5.7,164.57,164.42,3.9249]
[1729517678052,3.0397,164.55,164.46,3.0412]
[1729517678257,5.7,164.58,164.46,5.7]
[1729517678553,5.7,164.59,164.49,3.0405]
[1729517678747,8.7388,164.6,164.46,5.7]
[1729517678953,5.7,164.6,164.46,5.7]
[1729517679152,18.21,164.72,164.46,5.7]
[1729517679355,18.21,164.7,164.46,11.7822]
[1729517680252,65.66,164.71,164.46,7.22120294]
[1729517680455,5.7,164.7,164.47,1.52120294]
[1729517680653,3.0374,164.67,164.62,3.0382]
[1729517681055,8.7374,164.67,164.62,3.0382]
[1729517681261,8.7374,164.67,164.56,5.7]
[1729517681262,5.7,164.67,164.63,3.038]
[1729517681453,5.7,164.67,164.57,3.9631]
[1729517681652,65.66,164.71,164.57,3.9631]
[1729517681954,3.08069791,164.75,164.57,3.9631]
[1729517682159,5.7,164.74,164.57,3.9631]
[1729517682359,8.7363,164.74,164.68,3.0371]
[1729517682560,5.7,164.74,164.68,3.0371]
[1729517683359,3.0365,164.72,164.66,3.0374]
[1729517683753,3.0365,164.72,164.63,5.7]
[1729517684257,3.0365,164.72,164.67,3.0372]
[1729517684458,3.0363,164.73,164.67,3.0372]
[1729517684857,3.0363,164.73,164.68,3.0372]
[1729517686852,5.7,164.74,164.57,3.9631]
[1729517687057,5.7,164.74,164.58,5.7]
[1729517687460,3.0372,164.69,164.63,3.038]
[1729517687652,5.7,164.69,164.57,3.9631]
[1729517688061,5.7,164.69,164.57,2.6178]
[1729517688561,5.7,164.69,164.62,3.0382]
[1729517688562,3.0376,164.67,164.62,3.0382]
[1729517688769,5.7,164.69,164.57,2.6178]
[1729517689858,5.7,164.68,164.63,3.0381]
[1729517690063,5.7,164.67,164.63,3.0381]
[1729517690258,5.7,164.67,164.57,2.6178]
[1729517690664,5.7,164.67,164.57,8.3178]
[1729517690865,5.7,164.67,164.64,3.0378]
[1729517691364,5.7,164.69,164.66,3.0376]
[1729517691567,5.7,164.69,164.57,8.3178]
[1729517691969,3.0374,164.68,164.63,3.038]
[1729517692163,5.7,164.69,164.57,8.3178]
[1729517692561,8.7372,164.69,164.64,3.0379]
[1729517692763,5.7,164.69,164.57,8.3178]
[1729517693163,5.7,164.69,164.64,3.0379]
[1729517694263,5.7,164.69,164.57,8.3178]
[1729517694871,3.0373,164.68,164.57,8.3178]
[1729517695170,5.7,164.69,164.57,8.3178]
[1729517695360,3.0367,164.71,164.57,8.3178]
[1729517695561,5.7,164.72,164.57,8.3178]
[1729517696067,3.0367,164.71,164.57,8.3178]
[1729517696267,5.7,164.72,164.57,8.3178]
[1729517696571,23.91,164.72,164.57,2.6178]
[1729517697070,5.7,164.72,164.57,2.6178]
[1729517697272,5.7,164.72,164.58,5.7]
[1729517697470,3.0372,164.68,164.63,3.0381]
[1729517698175,3.0372,164.68,164.58,5.7]
[1729517698674,5.7,164.72,164.58,5.7]
[1729517699374,5.7,164.72,164.63,3.038]
[1729517699570,3.0374,164.68,164.63,3.038]
[1729517699770,6.11606463,164.68,164.63,3.038]
[1729517699972,3.07866463,164.68,164.63,3.038]
[1729517700269,5.7,164.72,164.58,5.7]
[1729517700573,3.0372,164.69,164.58,5.7]
[1729517700774,5.7,164.72,164.58,5.7]
[1729517700962,23.91,164.72,164.58,5.7]
[1729517701170,3.0377,164.66,164.58,5.7]
[1729517701370,3.0377,164.66,164.61,3.0383]
[1729517701973,8.75191213,164.67,164.57,5.6569]
[1729517702271,3.0382,164.63,164.57,2.6178]
[1729517702673,8.75191213,164.67,164.57,2.6178]
[1729517703870,21.19758001,164.77,164.57,2.6178]
[1729517704072,6.071,164.78,164.57,2.6178]
[1729517704073,3.037,164.7,164.65,3.0376]
[1729517704271,11.7380216,164.7,164.65,3.0376]
[1729517704671,3.0371,164.69,164.65,3.0376]
[1729517705469,3.04473494,164.74,164.65,5.7]
[1729517705672,3.04473494,164.74,164.66,2.5866]
[1729517706175,5.7,164.77,164.66,2.5866]
[1729517706380,8.72011198,164.77,164.66,2.5866]
[1729517706571,3.0366,164.72,164.67,3.0373]
[1729517706771,8.72011198,164.77,164.66,2.5866]
[1729517707170,26.93011198,164.77,164.66,2.5866]
[1729517707373,26.93011198,164.77,164.61,1.3149]
[1729517707577,26.93011198,164.77,164.5,6.0808]
[1729517707578,26.93011198,164.77,164.57,8.2829]
[1729517707772,3.038,164.64,164.6,3.0387]
[1729517708075,5.7,164.66,164.57,2.5829]
[1729517708271,18.21,164.75,164.65,3.0377]
[1729517708469,5.7,164.74,164.65,3.0377]
[1729517708870,3.0371,164.69,164.65,3.0377]
[1729517709273,3.0371,164.69,164.57,2.5829]
[1729517709481,5.7,164.74,164.58,6.0781]
[1729517709774,3.02011198,164.77,164.57,2.5829]
[1729517709972,5.7,164.77,164.57,2.5829]
[1729517710273,8.69511854,164.77,164.59,6.0777]
[1729517710578,3.0362,164.74,164.6,6.9626]
[1729517710775,2.99511854,164.77,164.61,6.077]
[1729517710977,5.7,164.77,164.61,6.077]
[1729517711276,3.0359,164.76,164.71,3.0365]
[1729517711571,3.0359,164.76,164.61,6.077]
[1729517711572,8.72735027,164.77,164.67,5.7]
[1729517711777,8.72735027,164.77,164.68,2.5171]
[1729517712373,8.72735027,164.77,164.6,1.2626]
[1729517712374,26.93735027,164.77,164.61,5.7]
[1729517712576,26.93735027,164.77,164.61,8.2047]
[1729517712777,3.0371,164.69,164.64,3.0379]
[1729517712979,5.7,164.71,164.61,8.2047]
[1729517713375,8.7368,164.71,164.66,3.0375]
[1729517713679,5.7,164.71,164.61,8.2047]
[1729517713880,3.0375,164.67,164.62,3.0381]
[1729517714174,3.0375,164.67,164.61,8.2047]
[1729517714376,3.0375,164.67,164.62,3.0382]
[1729517715279,3.05039211,164.68,164.61,2.5047]
[1729517715477,5.7,164.71,164.55,5.7]
[1729517715680,5.7,164.71,164.59,1.2622]
[1729517715881,5.7,164.71,164.6,1.338]
[1729517716976,5.7,164.71,164.61,1.3387]
[1729517717380,3.0373,164.68,164.64,3.0379]
[1729517717676,2.98928698,164.67,164.6,1.338]
[1729517717883,5.7,164.71,164.6,1.338]
[1729517718176,18.21,164.75,164.6,1.338]
[1729517718389,29.9823,164.74,164.6,1.338]
[1729517718578,23.91,164.74,164.6,1.338]
[1729517718877,24.2839,164.7,164.45,6.0828]
[1729517719081,23.91,164.69,164.51,6.942]
[1729517719484,23.91,164.69,164.55,3.0395]
[1729517719782,83.87,164.68,164.55,3.0395]
[1729517720175,3.0391,164.58,164.51,1.242]
[1729517720375,8.6780968,164.6,164.51,1.242]
[1729517720682,3.0391,164.58,164.54,3.0396]
[1729517721184,5.7,164.59,164.58,3.039]
[1729517721384,5.7,164.64,164.51,1.242]
[1729517721683,5.7,164.63,164.51,1.242]
[1729517721885,3.0382,164.63,164.58,3.0389]
[1729517722283,8.7344189,164.64,164.51,1.242]
[1729517722579,8.7344189,164.64,164.51,6.942]
[1729517722783,8.7344189,164.64,164.49,2.5166]
[1729517722988,8.7344189,164.64,164.5,1.2878]
[1729517723485,3.0394,164.57,164.53,3.04]
[1729517723686,5.7,164.59,164.5,1.2878]
[1729517723886,5.7,164.59,164.49,2.5166]
[1729517723887,5.7,164.59,164.4,5.7]
[1729517724082,5.7,164.59,164.46,2.6134]
[1729517724387,5.7,164.6,164.46,8.3134]
[1729517724580,3.0389,164.59,164.54,3.0397]
[1729517724884,5.7,164.6,164.46,8.3134]
[1729517725288,5.7,164.6,164.46,2.6134]
[1729517725875,5.7,164.6,164.47,3.0409]
[1729517726279,5.7,164.6,164.46,2.6134]
[1729517726476,5.7,164.6,164.49,3.0406]
[1729517727090,3.04,164.54,164.49,3.0406]
[1729517727286,5.7,164.55,164.46,2.6134]
[1729517727685,3.0398,164.54,164.46,2.6134]
[1729517728179,5.7,164.6,164.47,5.7]
[1729517728890,3.0392,164.58,164.47,5.7]
[1729517729085,5.7,164.6,164.47,5.7]
[1729517729283,65.66,164.68,164.47,5.7]
[1729517729485,5.7,164.67,164.48,1.52110217]
[1729517729680,3.0386,164.61,164.57,3.0392]
[1729517729880,5.7,164.62,164.51,5.7]
[1729517730390,5.7,164.64,164.51,5.7]
[1729517730887,8.738,164.64,164.59,3.0387]
[1729517731383,3.0384,164.62,164.57,3.0392]
[1729517732188,3.0385,164.61,164.57,3.0392]
[1729517732999,3.0388,164.6,164.55,3.0396]
[1729517733505,3.0388,164.6,164.51,5.7]
[1729517733506,5.7,164.64,164.51,5.7]
[1729517734910,3.0387,164.6,164.51,5.7]
[1729517735209,5.7,164.59,164.46,2.6134]
[1729517735402,5.7,164.59,164.47,1.319]
[1729517736003,5.7,164.58,164.47,1.319]
[1729517736404,3.0394,164.57,164.52,3.04]
[1729517736801,18.21,164.67,164.47,1.319]
[1729517736802,5.7,164.6,164.48,5.7]
[1729517737205,8.73612455,164.6,164.48,5.7]
[1729517737504,3.0393,164.57,164.48,5.7]
[1729517737703,5.7,164.62,164.49,6.0814]
[1729517737907,5.7,164.62,164.48,5.7]
[1729517738106,3.0392,164.58,164.48,5.7]
[1729517738308,8.722555,164.62,164.48,5.7]
[1729517738505,3.0394,164.57,164.52,3.04]
[1729517738700,3.0394,164.57,164.48,5.7]
[1729517738903,5.7,164.57,164.48,5.7]
[1729517739110,3.0398,164.55,164.48,5.7]
[1729517739706,3.0395,164.56,164.51,3.0402]
[1729517740107,3.0395,164.56,164.48,5.7]
[1729517740412,3.0395,164.56,164.51,3.0402]
[1729517740710,3.0395,164.56,164.48,5.7]
[1729517740913,3.0395,164.56,164.51,3.0402]
[1729517742110,3.0395,164.56,164.48,5.7]
[1729517742307,5.7,164.57,164.48,5.7]
[1729517742708,5.7,164.57,164.53,3.0398]
[1729517743013,5.7,164.57,164.48,5.7]
[1729517743208,6.0736,164.71,164.48,5.7]
[1729517743409,3.0377,164.66,164.49,1.52114974]
[1729517743611,3.0377,164.66,164.48,5.7]
[1729517743612,5.7,164.67,164.5,1.52082698]
[1729517743810,5.7,164.67,164.61,3.0383]
[1729517744004,2.98965042,164.74,164.56,5.7]
[1729517744208,2.98965042,164.74,164.57,3.8046]
[1729517744511,5.7,164.73,164.57,3.8046]
[1729517744704,8.77326212,164.73,164.57,3.8046]
[1729517745815,3.07326212,164.73,164.57,3.8046]
[1729517746013,5.7,164.72,164.57,3.8046]
[1729517746410,5.7,164.72,164.66,3.0376]
[1729517747916,3.037,164.69,164.64,3.0379]
[1729517748517,5.7,164.72,164.61,3.0384]
[1729517748518,3.0375,164.67,164.61,3.0384]
[1729517748815,5.7,164.67,164.61,3.0384]
[1729517749317,5.7,164.67,164.58,5.7]
[1729517749713,3.0384,164.62,164.57,6.8437]
[1729517749908,3.09014519,164.64,164.57,1.2632]
[1729517750214,5.7,164.67,164.46,6.0826]
[1729517750215,5.7,164.67,164.51,5.7]
[1729517750513,23.91,164.67,164.51,5.7]
[1729517751017,3.0392,164.58,164.51,5.7]
[1729517751607,3.0392,164.57,164.52,3.0401]
[1729517751812,5.7,164.59,164.48,9.5713]
[1729517752013,18.21,164.69,164.48,9.5713]
[1729517752210,6.0722,164.75,164.48,9.5713]
[1729517752211,5.7,164.68,164.48,9.5713]
[1729517752611,5.7,164.68,164.49,1.52096766]
[1729517752810,5.7,164.68,164.48,9.5713]
[1729517752811,3.038,164.64,164.55,3.0395]
[1729517753015,3.038,164.64,164.48,9.5713]
[1729517753016,3.038,164.64,164.56,2.5924]
[1729517753510,3.0383,164.63,164.57,3.0391]
[1729517754520,3.0383,164.63,164.58,3.039]
[1729517755121,5.7,164.65,164.56,2.5924]
[1729517755715,3.0386,164.61,164.56,5.6318]
[1729517756011,5.7,164.65,164.56,2.5924]
[1729517756213,3.0382,164.63,164.59,3.0389]
[1729517756622,3.0377,164.66,164.61,3.0384]
[1729517756811,5.7,164.65,164.61,3.0384]
[1729517757512,5.7,164.65,164.57,1.3634]
[1729517757718,5.7,164.65,164.6,3.0387]
[1729517757918,5.7,164.65,164.57,1.3634]
[1729517758119,18.21,164.63,164.42,0.0419]
[1729517758312,18.21,164.61,164.37,2.5941]
[1729517758517,18.21,164.59,164.38,1.2952]
[1729517758717,3.0413,164.46,164.38,4.3379]
[1729517758920,6.02,164.45,164.38,4.3379]
[1729517759321,6.02,164.45,164.38,1.2952]
[1729517759520,6.02,164.45,164.37,2.5941]
[1729517760330,3.0417,164.44,164.37,2.5941]
[1729517760624,6.02,164.45,164.37,2.5941]
[1729517761014,6.02,164.44,164.37,2.5941]
[1729517761714,18.21,164.6,164.37,2.5941]
[1729517761915,65.72,164.52,164.37,2.5941]
[1729517762118,2.9826939,164.52,164.37,2.5941]
[1729517762323,6.02,164.51,164.37,2.5941]
[1729517762525,6.02,164.5,164.37,2.5941]
[1729517763223,3.0416,164.45,164.37,2.5941]
[1729517763433,9.0616,164.45,164.37,2.5941]
[1729517763618,9.0615,164.45,164.37,2.5941]
[1729517764123,6.02,164.45,164.37,2.5941]
[1729517765418,9.0615,164.45,164.37,2.5941]
[1729517766129,3.0417,164.44,164.37,2.5941]
[1729517766829,6.02,164.45,164.32,1.2952]
[1729517767024,6.02,164.45,164.33,2.5665]
[1729517767425,3.0423,164.41,164.34,3.0435]
[1729517767626,6.02,164.45,164.33,2.5665]
[1729517768329,6.02,164.45,164.25,6.02]
[1729517768527,6.02,164.45,164.26,1.2486]
[1729517768728,6.02,164.44,164.27,1.52291549]
[1729517769031,6.02,164.43,164.28,1.5228132]
[1729517769219,3.0426,164.39,164.26,1.2486]
[1729517769731,3.0426,164.39,164.27,1.52285917]
[1729517769930,3.0426,164.39,164.28,1.52285917]
[1729517770125,3.0426,164.39,164.26,1.2486]
[1729517770320,3.0431,164.37,164.27,1.5228041]
[1729517770525,83.95,164.48,164.26,1.2486]
[1729517770831,3.11208503,164.51,164.27,1.52282792]
[1729517770832,3.042,164.43,164.27,1.52282792]
[1729517771033,3.042,164.43,164.28,1.52282792]
[1729517771227,3.042,164.43,164.29,1.52282792]
[1729517771430,3.042,164.43,164.3,6.02]
[1729517771831,6.02,164.45,164.3,6.02]
[1729517772527,3.0424,164.4,164.34,3.0434]
[1729517773032,3.0424,164.4,164.3,6.02]
[1729517773228,3.0417,164.44,164.3,6.02]
[1729517773423,6.04,164.45,164.38,3.0426]
[1729517773627,6.04,164.46,164.38,3.0426]
[1729517773828,6.04,164.46,164.36,3.8842]
[1729517774028,3.0416,164.45,164.39,3.0424]
[1729517774537,6.0785,164.58,164.36,3.8842]
[1729517774828,6.04,164.57,164.37,6.04]
[1729517775028,3.0402,164.52,164.46,3.0412]
[1729517775231,6.04,164.54,164.43,6.04]
[1729517775531,6.04,164.54,164.44,2.5784]
[1729517775931,3.0401,164.53,164.47,3.0409]
[1729517776127,6.04,164.54,164.44,2.5784]
[1729517776329,3.0405,164.51,164.45,3.0413]
[1729517776730,3.02554803,164.53,164.24,65.74]
[1729517776930,24.25,164.54,164.37,3.0428]
[1729517777134,24.25,164.54,164.36,1.2677]
[1729517777334,6.0802,164.53,164.36,1.2677]
[1729517777536,3.0418,164.43,164.38,3.0427]
[1729517778436,6.02,164.46,164.36,1.2677]
[1729517778636,3.0422,164.41,164.36,4.3107]
[1729517779036,3.0422,164.41,164.36,1.2677]
[1729517779237,6.02,164.46,164.34,1.3684]
[1729517779539,6.02,164.46,164.25,4.05778974]
[1729517779540,24.23,164.46,164.25,4.05778974]
[1729517779736,3.0431,164.36,164.25,2.535]
[1729517779938,3.0431,164.36,164.25,8.575]
[1729517780333,3.0429,164.37,164.25,8.575]
[1729517780937,3.0429,164.37,164.3,3.0441]
[1729517781535,6.04,164.38,164.3,3.0441]
[1729517781741,3.0431,164.36,164.3,3.0441]
[1729517782040,6.04,164.38,164.3,3.0442]
[1729517782235,3.0431,164.37,164.3,3.0442]
[1729517782435,6.04,164.38,164.25,2.535]
[1729517782636,6.04,164.38,164.25,8.575]
[1729517782837,3.0436,164.34,164.25,8.575]
[1729517783038,6.04,164.38,164.25,8.575]
[1729517783235,6.04,164.38,164.3,3.0442]
[1729517783839,3.0432,164.36,164.3,3.0442]
[1729517784335,3.0432,164.36,164.25,8.575]
[1729517784537,3.0432,164.36,164.25,2.535]
[1729517784739,3.0432,164.36,164.26,6.04]
[1729517785331,9.0831,164.37,164.26,6.04]
[1729517785531,6.04,164.37,164.26,6.04]
[1729517786741,3.0431,164.36,164.26,6.04]
[1729517786944,18.21,164.47,164.26,6.04]
[1729517787137,6.04,164.46,164.26,6.04]
[1729517787534,3.0429,164.38,164.32,3.0437]
[1729517787731,3.094107,164.41,164.32,3.0437]
[1729517787936,6.04,164.4,164.26,6.04]
[1729517788140,9.0825,164.4,164.34,3.0434]
[1729517788337,6.04,164.4,164.34,3.0434]
[1729517788536,227.0,164.59,164.31,5.96]
[1729517788731,65.76,164.51,164.38,3.0427]
[1729517788938,5.96,164.5,164.33,2.6644]
[1729517789238,3.00893845,164.51,164.33,2.6644]
[1729517789535,5.96,164.5,164.33,2.6644]
[1729517789741,3.0415,164.45,164.33,2.6644]
[1729517790747,3.0415,164.45,164.4,3.0424]
[1729517790941,3.0415,164.45,164.38,5.96]
[1729517791244,5.96,164.5,164.38,5.96]
[1729517791443,5.96,164.5,164.41,3.0422]
[1729517791841,3.0415,164.45,164.41,3.0422]
[1729517792048,5.96,164.5,164.41,3.0421]
[1729517792244,5.96,164.5,164.38,5.96]
[1729517792643,5.96,164.5,164.37,3.0429]
[1729517793148,3.0421,164.42,164.38,3.0427]
[1729517793541,5.96,164.5,164.35,5.96]
[1729517793943,24.17,164.5,164.33,1.3718]
[1729517794144,24.17,164.5,164.28,1.3536]
[1729517794549,24.2933,164.44,164.28,1.3536]
[1729517794849,5.96,164.43,164.28,1.3536]
[1729517795154,18.21,164.41,164.2,65.76]
[1729517795353,3.0446,164.29,164.21,2.6004]
[1729517795745,21.27889669,164.41,164.21,2.6004]
[1729517796038,5.96,164.4,164.21,2.6004]
[1729517796238,5.96,164.39,164.21,2.6004]
[1729517796441,24.17,164.39,164.22,5.96]
[1729517796841,3.0438,164.33,164.22,5.96]
[1729517797040,5.96,164.38,164.22,5.96]
[1729517797442,3.0442,164.3,164.22,5.96]
[1729517797642,3.0442,164.3,164.23,5.96]
[1729517798045,3.0445,164.29,164.23,5.96]
[1729517798246,5.96,164.33,164.23,5.96]
[1729517800347,3.0436,164.34,164.23,5.96]
[1729517800552,5.96,164.38,164.23,5.96]
[1729517801550,3.0441,164.31,164.23,5.96]
[1729517801744,5.96,164.38,164.23,5.96]
[1729517801945,3.0444,164.3,164.23,5.96]
[1729517802151,5.96,164.38,164.23,5.96]
[1729517802653,5.96,164.38,164.21,2.6004]
[1729517802954,5.96,164.38,164.21,8.5604]
[1729517803252,3.0445,164.29,164.21,8.5604]
[1729517803446,5.96,164.33,164.21,8.5604]
[1729517804147,3.0443,164.3,164.21,8.5604]
[1729517804353,5.96,164.33,164.21,8.5604]
[1729517804550,5.96,164.33,164.21,2.6004]
[1729517804753,5.96,164.33,164.21,8.5604]
[1729517805453,3.0446,164.29,164.21,8.5604]
[1729517805850,5.96,164.33,164.21,8.5604]
[1729517806355,3.0447,164.28,164.21,8.5604]
[1729517806658,21.31450051,164.39,164.21,8.5604]
[1729517806659,3.10450051,164.39,164.21,8.5604]
[1729517806853,5.96,164.39,164.21,8.5604]
[1729517807048,8.97869286,164.39,164.21,8.5604]
[1729517807243,8.97869286,164.39,164.21,2.6004]
[1729517807451,8.97869286,164.39,164.22,5.96]
[1729517807849,27.18869286,164.39,164.22,5.96]
[1729517808451,3.0445,164.29,164.22,5.96]
[1729517808752,27.18869286,164.39,164.22,5.96]
[1729517808955,3.0446,164.28,164.22,5.96]